fUST/lending_fUST_20250228
["ID","MTS","AMOUNT","RATE_DAILY","PERIOD"]
[354810878,1740711063393,-5500.0,0.00231348,14]
[354810879,1740711063403,-160.0,0.00240537,120]
[354810880,1740711063414,-314.4095522,0.00243258,120]
[354810881,1740711063427,-500.0,0.00243287,120]
[354810882,1740711063438,-500.0,0.00243287,120]
[354810883,1740711063448,-500.0,0.00243287,120]
[354810884,1740711063459,-500.0,0.00243287,120]
[354810885,1740711063468,-500.0,0.00243287,120]
[354810886,1740711063479,-500.0,0.00243287,120]
[354810887,1740711063489,-500.0,0.00243287,120]
[354810888,1740711063499,-500.0,0.00243287,120]
[354810889,1740711063510,-500.0,0.00243287,120]
[354810890,1740711063522,-500.0,0.00243287,120]
[354810891,1740711063532,-16032.119008,0.00248,120]
[354810892,1740711063542,-1000.0,0.0025,120]
[354810893,1740711063552,-500.0,0.0025,120]
[354810894,1740711063563,-500.0,0.0025,120]
[354810895,1740711063573,-500.0,0.0025,120]
[354810896,1740711063583,-500.0,0.0025,120]
[354810897,1740711063594,-1000.0,0.0025,120]
[354810898,1740711063604,-500.0,0.0025,120]
[354810899,1740711063615,-5032.57298758,0.00250618,120]
[354810900,1740711063625,-160.538884,0.00256552,120]
[354810901,1740711063635,-6000.0,0.00257979,14]
[354810902,1740711063645,-500.0,0.0026,120]
[354810903,1740711063655,-500.0,0.0026,120]
[354810904,1740711063666,-500.0,0.0026,120]
[354810905,1740711063677,-500.0,0.0026,120]
[354810906,1740711063688,-1053.51152523,0.0026205,120]
[354810907,1740711063699,-500.0,0.0027,120]
[354810908,1740711063712,-500.0,0.0027,120]
[354810909,1740711063721,-500.0,0.0027,120]
[354810910,1740711063731,-500.0,0.0027,120]
[354810911,1740711063741,-500.0,0.0027,120]
[354810912,1740711063753,-500.0,0.0027,120]
[354810913,1740711063778,-500.0,0.00273972,120]
[354810914,1740711063791,-500.0,0.00273972,120]
[354810915,1740711063801,-500.0,0.00273972,120]
[354810916,1740711063811,-500.0,0.00273972,120]
[354810917,1740711063821,-500.0,0.00273972,120]
[354810918,1740711063831,-500.0,0.00273972,120]
[354810919,1740711063842,-500.0,0.00273972,120]
[354810920,1740711063852,-500.0,0.00273972,120]
[354810921,1740711063862,-500.0,0.00273972,120]
[354810922,1740711063873,-500.0,0.00273972,120]
[354810923,1740711063884,-500.0,0.00273972,120]
[354810924,1740711063893,-500.0,0.00273972,120]
[354810925,1740711063903,-500.0,0.00273972,120]
[354810926,1740711063913,-389.57432891,0.00273972,120]
[354810927,1740711063924,-182.744011,0.00273973,120]
[354810928,1740711063935,-151.0,0.00273973,120]
[354810929,1740711063945,-151.0,0.00273973,120]
[354810930,1740711063954,-151.0,0.00273973,120]
[354810931,1740711063964,-166.202638,0.00273973,120]
[354810932,1740711063974,-151.0,0.00273973,120]
[354810933,1740711063985,-151.0,0.00273973,120]
[354810934,1740711063995,-151.0,0.00273973,120]
[354810935,1740711064004,-151.0,0.00273973,120]
[354810936,1740711064014,-151.0,0.00273973,120]
[354810937,1740711064024,-151.0,0.00273973,120]
[354810938,1740711064034,-151.0,0.00273973,120]
[354810939,1740711064043,-151.0,0.00273973,120]
[354810940,1740711064053,-151.0,0.00273973,120]
[354810941,1740711064063,-151.0,0.00273973,120]
[354810942,1740711064074,-151.0,0.00273973,120]
[354810943,1740711064084,-151.0,0.00273973,120]
[354810944,1740711064096,-151.0,0.00273973,120]
[354810945,1740711064117,-151.0,0.00273973,120]
[354810946,1740711064132,-151.0,0.00273973,120]
[354810947,1740711064146,-467.167709,0.00273973,120]
[354810948,1740711064156,-467.167709,0.00273973,120]
[354810949,1740711064166,-467.167709,0.00273973,120]
[354810950,1740711064179,-467.167709,0.00273973,120]
[354810951,1740711064189,-467.167709,0.00273973,120]
[354810952,1740711064200,-467.167709,0.00273973,120]
[354810953,1740711064210,-467.167709,0.00273973,120]
[354810954,1740711064226,-933.044701,0.00273973,120]
[354810955,1740711064238,-933.044701,0.00273973,120]
[354810956,1740711064249,-933.044701,0.00273973,120]
[354810957,1740711064260,-933.044701,0.00273973,120]
[354810958,1740711064271,-933.044701,0.00273973,120]
[354810959,1740711064282,-933.044701,0.00273973,120]
[354810960,1740711064293,-933.044701,0.00273973,120]
[354810961,1740711064303,-371.500554,0.00273973,120]
[354810962,1740711064313,-371.500554,0.00273973,120]
[354810963,1740711064324,-371.500554,0.00273973,120]
[354810964,1740711064334,-371.500554,0.00273973,120]
[354810965,1740711064343,-371.500554,0.00273973,120]
[354810966,1740711064354,-371.500554,0.00273973,120]
[354810967,1740711064364,-371.500554,0.00273973,120]
[354810968,1740711064375,-371.50055492,0.00273973,120]
[354810969,1740711064386,-672.305236,0.00273973,120]
[354810970,1740711064397,-672.305236,0.00273973,120]
[354810971,1740711064406,-672.305236,0.00273973,120]
[354810972,1740711064416,-672.30524464,0.00273973,120]
[354810973,1740711064428,-151.0,0.00273973,2]
[354810974,1740711064438,-151.0,0.00273973,2]
[354810975,1740711064448,-448.133255,0.00273973,120]
[354810976,1740711064459,-448.133255,0.00273973,120]
[354810977,1740711064472,-448.133255,0.00273973,120]
[354810978,1740711064484,-448.133256,0.00273973,120]
[354810979,1740711064496,-347.378101,0.00273973,120]
[354810980,1740711064509,-151.0,0.00273973,120]
[354810981,1740711064519,-690.848298,0.00273973,120]
[354810982,1740711064533,-690.848301,0.00273973,120]
[354810983,1740711064543,-8016.05950399,0.0028,120]
[354810984,1740711064554,-1000.0,0.0028,120]
[354810985,1740711064564,-5000.0,0.002829,120]
[354810986,1740711064574,-3000.0,0.002829,120]
[354810987,1740711064584,-772810.0,0.002844,39]
[354810988,1740711064593,-347.378093,0.002844,120]
[354810989,1740711064602,-6500.0,0.00285849,14]
[354810990,1740711064611,-1350.0,0.0029,120]
[354810991,1740711064620,-1350.0,0.0029,120]
[354810992,1740711064629,-1350.0,0.0029,120]
[354810993,1740711064638,-1350.0,0.0029,120]
[354810994,1740711064647,-1350.0,0.0029,120]
[354810995,1740711064656,-100076.2147129,0.0029,120]
[354810996,1740711064666,-9054.12860066,0.0029,120]
[354810997,1740711064678,-23705.9949462,0.00294396,90]
[354810998,1740711064690,-500.0,0.00298,120]
[354810999,1740711064700,-1000.0,0.003,120]
[354811000,1740711064710,-150.94,0.003,120]
[354811001,1740711064720,-325.0,0.003,120]
[354811002,1740711064730,-500.0,0.003,120]
[354811003,1740711064742,-377.1938527,0.00301364,120]
[354811004,1740711064751,-3288.32295616,0.00301364,120]
[354811005,1740711064761,-150.0,0.00301365,14]
[354811006,1740711064771,-150.0,0.00301365,14]
[354811007,1740711064781,-150.54,0.00301365,120]
[354811008,1740711064790,-150.54,0.00301365,120]
[354811009,1740711064799,-150.54,0.00301392,120]
[354811010,1740711064808,-150.54,0.00301392,120]
[354811011,1740711064817,-150.54,0.0030142,120]
[354811012,1740711064826,-202.15966673,0.0030142,120]
[354811013,1740711064836,-150.54,0.00301447,120]
[354811014,1740711064846,-276.22839408,0.00301475,120]
[354811015,1740711064855,-3500.0,0.00314906,14]
[354811016,1740711064864,-150000.0,0.003333,120]
[354811017,1740711064874,-1000.0,0.003333,120]
[354811018,1740711064883,-460.39,0.00336,87]
[354811019,1740711064893,-460.39,0.00336,87]
[354811020,1740711064902,-460.39,0.00336,87]
[354811021,1740711064911,-460.39,0.00336,87]
[354811022,1740711064920,-460.39,0.00336,87]
[354811023,1740711064931,-460.39,0.00336,87]
[354811024,1740711064940,-460.39,0.00336,87]
[354811025,1740711064949,-460.39,0.00336,87]
[354811026,1740711064959,-460.39,0.00336,87]
[354811027,1740711064968,-460.39,0.00336,87]
[354811028,1740711064978,-460.39,0.00336,87]
[354811029,1740711064987,-460.39,0.00336,87]
[354811030,1740711064997,-460.39,0.00336,87]
[354811031,1740711065007,-460.39,0.00336,87]
[354811032,1740711065016,-460.39,0.00336,87]
[354811033,1740711065026,-460.39,0.00336,87]
[354811034,1740711065035,-460.39,0.00336,87]
[354811035,1740711065045,-460.39,0.00336,87]
[354811036,1740711065054,-460.39,0.00336,87]
[354811037,1740711065064,-460.39,0.00336,87]
[354811038,1740711065076,-460.39,0.00336,87]
[354811039,1740711065085,-460.39,0.00336,87]
[354811040,1740711065095,-460.39,0.00336,87]
[354811041,1740711065104,-460.39,0.00336,87]
[354811042,1740711065115,-5032.57298758,0.00349709,120]
[354811043,1740711065125,-5906.87709,0.0035,31]
[354811044,1740711065134,-1998.88215612,0.0035,120]
[354811045,1740711065144,-1000.0,0.0035,120]
[354811046,1740711065154,-3661.29,0.0035,60]
[354811047,1740711065164,-1431.26,0.0035,60]
[354811048,1740711065174,-1822.5075,0.00352,82]
[354811049,1740711065186,-64468.83,0.0036,120]
[354811050,1740711065196,-7195.22,0.003815,120]
[354811051,1740711065205,-5000.0,0.003829,120]
[354811052,1740711065215,-1836.96358,0.0039,117]
[354811053,1740711065225,-2023.53,0.0039966,120]
[354811054,1740711065235,-23705.9949462,0.003998,120]
[354811055,1740711065245,-429.87,0.0039989,120]
[354811056,1740711065255,-700.0,0.004,120]
[354811057,1740711065264,-500.0,0.004,120]
[354811058,1740711065274,-1749.18824,0.004,68]
[354811059,1740711065284,-46458.5474723,0.004,120]
[354811060,1740711065294,-1000.0,0.004,30]
[354811061,1740711065304,-1998.88215612,0.004,120]
[354811062,1740711065314,-1000.0,0.004,120]
[354811063,1740711065324,-10000.0,0.004052,120]
[354811064,1740711065335,-1792.35,0.0041,120]
[354811065,1740711065344,-201.0890715,0.00418532,120]
[354811066,1740711065354,-1000.0,0.0042998,120]
[354811067,1740711065364,-725081.0,0.00444,30]
[354811068,1740711065374,-200000.0,0.004444,120]
[354811069,1740711065384,-5032.57298758,0.004488,120]
[354811070,1740711065394,-50000.0,0.004489,120]
[354811071,1740711065403,-1998.88215612,0.0045,120]
[354811072,1740711065413,-9102.58427828,0.00465,120]
[354811073,1740711065422,-460.39,0.004773,87]
[354811074,1740711065435,-460.39,0.004773,87]
[354811075,1740711065444,-460.39,0.004773,87]
[354811076,1740711065453,-460.39,0.004773,87]
[354811077,1740711065462,-460.39,0.004773,87]
[354811078,1740711065473,-460.39,0.004773,87]
[354811079,1740711065482,-460.39,0.004773,87]
[354811080,1740711065492,-460.39,0.004773,87]
[354811081,1740711065501,-460.39,0.004773,87]
[354811082,1740711065511,-460.39,0.004773,87]
[354811083,1740711065520,-460.39,0.004773,87]
[354811084,1740711065529,-460.39,0.004773,87]
[354811085,1740711065539,-460.39,0.004773,87]
[354811086,1740711065548,-460.39,0.004773,87]
[354811087,1740711065557,-460.39,0.004773,87]
[354811088,1740711065566,-460.39,0.004773,87]
[354811089,1740711065575,-460.39,0.004773,87]
[354811090,1740711065584,-460.39,0.004773,87]
[354811091,1740711065594,-460.39,0.004773,87]
[354811092,1740711065603,-460.39,0.004773,87]
[354811093,1740711065613,-460.39,0.004773,87]
[354811094,1740711065622,-460.39,0.004773,87]
[354811095,1740711065631,-460.39,0.004773,87]
[354811096,1740711065641,-460.39,0.004773,87]
[354811097,1740711065650,-5000.0,0.0048,120]
[354811098,1740711065659,-1000.0,0.0048,30]
[354811099,1740711065668,-5000.0,0.0048,120]
[354811100,1740711065678,-324.32,0.0048,120]
[354811101,1740711065688,-36517.85239814,0.004802,120]
[354811102,1740711065698,-5000.0,0.004829,120]
[354811103,1740711065711,-3000.0,0.004829,120]
[354811104,1740711065721,-221.19371047,0.0049,120]
[354811105,1740711065730,-256890.73537295,0.0049,120]
[354811106,1740711065740,-864.66408256,0.0049,120]
[354811107,1740711065749,-56531.0346071,0.0049,120]
[354811108,1740711065759,-23705.9949462,0.0049805,120]
[354811109,1740711065768,-2000.0,0.00499,120]
[354811110,1740711065868,-1000.0,0.00499999,120]
[354811111,1740711065878,-3005.0,0.005,120]
[354811112,1740711065888,-5403.0,0.005,120]
[354811113,1740711065897,-400.0,0.005,60]
[354811114,1740711065906,-500.0,0.005,120]
[354811115,1740711065915,-1742.784924,0.005,116]
[354811116,1740711065925,-1000.0,0.005,30]
[354811117,1740711065936,-1998.88215612,0.005,120]
[354811118,1740711065946,-26985.19706832,0.005,120]
[354811119,1740711065955,-1000.0,0.0052,120]
[354811120,1740711065965,-469.0268825,0.0052739,120]
[354811121,1740711065975,-1000.0,0.0053,30]
[354811122,1740711065984,-1814.072,0.0053057,92]
[354811123,1740711065994,-200000.0,0.005333,120]
[354811124,1740711066004,-500.0,0.00547945,120]
[354811125,1740711066014,-500.0,0.00547945,120]
[354811126,1740711066025,-395.39839817,0.00547945,120]
[354811127,1740711066035,-1000.0,0.00547945,30]
[354811128,1740711066045,-150.0,0.00547945,15]
[354811129,1740711066055,-581.68104304,0.00548493,30]
[354811130,1740711066065,-250.0,0.00548493,15]
[354811131,1740711066074,-5000.0,0.00548656,30]
[354811132,1740711066084,-50000.0,0.005489,120]
[354811133,1740711066094,-350.0,0.00549041,15]
[354811134,1740711066103,-450.0,0.00549589,15]
[354811135,1740711066112,-1998.88215612,0.0055,120]
[354811136,1740711066122,-165.0000008,0.0055,120]
[354811137,1740711066131,-550.0,0.00550137,15]
[354811138,1740711066141,-650.0,0.00550685,15]
[354811139,1740711066150,-750.0,0.00551233,15]
[354811140,1740711066159,-850.0,0.00551781,15]
[354811141,1740711066168,-950.0,0.00552329,15]
[354811142,1740711066179,-1050.0,0.00552877,15]
[354811143,1740711066188,-1039.31357107,0.00553425,15]
[354811144,1740711066198,-1000.0,0.00553987,120]
[354811145,1740711066208,-5000.0,0.00554198,30]
[354811146,1740711066217,-5000.0,0.00559796,30]
[354811147,1740711066227,-314.4095522,0.0056341,120]
[354811148,1740711066237,-5000.0,0.0056545,30]
[354811149,1740711066247,-1000.0,0.0056744,120]
[354811150,1740711066256,-5000.0,0.00571162,30]
[354811151,1740711066265,-5000.0,0.00576931,30]
[354811152,1740711066274,-5000.0,0.00582759,30]
[354811153,1740711066283,-5000.0,0.005829,120]
[354811154,1740711066293,-217.85517838,0.00585,120]
[354811155,1740711066302,-5000.0,0.00588645,30]
[354811156,1740711066311,-200000.0,0.005888,120]
[354811157,1740711066320,-15594.5652069,0.00589,30]
[354811158,1740711066330,-250.0,0.0059,30]
[354811159,1740711066339,-1565.56606,0.0059139,67]
[354811160,1740711066348,-23705.9949462,0.00594407,120]
[354811161,1740711066357,-5000.0,0.00594591,30]
[354811162,1740711066367,-2000.0,0.005988,120]
[354811163,1740711066376,-398.0,0.00598989,120]
[354811164,1740711066385,-1000.0,0.00599999,120]
[354811165,1740711066395,-40155.2912211,0.00599999,120]
[354811166,1740711066404,-500.0,0.006,120]
[354811167,1740711066413,-500.0,0.006,120]
[354811168,1740711066423,-500.0,0.006,120]
[354811169,1740711066434,-160.0,0.006,120]
[354811170,1740711066444,-1000.0,0.006,120]
[354811171,1740711066453,-20000.0,0.006,120]
[354811172,1740711066463,-240.89,0.006,120]
[354811173,1740711066474,-1000.0,0.006,30]
[354811174,1740711066484,-1998.88215612,0.006,120]
[354811175,1740711066493,-5000.0,0.00600597,30]
[354811176,1740711066503,-5000.0,0.00606664,30]
[354811177,1740711066513,-5000.0,0.00612792,30]
[354811178,1740711066523,-7542.16358029,0.00617944,30]
[354811179,1740711066533,-460.39,0.006186,87]
[354811180,1740711066542,-460.39,0.006186,87]
[354811181,1740711066552,-460.39,0.006186,87]
[354811182,1740711066562,-460.39,0.006186,87]
[354811183,1740711066571,-460.39,0.006186,87]
[354811184,1740711066581,-460.39,0.006186,87]
[354811185,1740711066591,-460.39,0.006186,87]
[354811186,1740711066602,-460.39,0.006186,87]
[354811187,1740711066612,-460.39,0.006186,87]
[354811188,1740711066622,-460.39,0.006186,87]
[354811189,1740711066632,-460.39,0.006186,87]
[354811190,1740711066642,-460.39,0.006186,87]
[354811191,1740711066652,-460.39,0.006186,87]
[354811192,1740711066662,-460.39,0.006186,87]
[354811193,1740711066671,-460.39,0.006186,87]
[354811194,1740711066683,-460.39,0.006186,87]
[354811195,1740711066698,-5000.0,0.00618981,30]
[354811196,1740711066708,-1000.0,0.0062,120]
[354811197,1740711066718,-1792.35,0.0062,120]
[354811198,1740711066728,-3661.29,0.0062,60]
[354811199,1740711066739,-1431.26,0.0062,60]
[354811200,1740711066749,-5000.0,0.00625234,30]
[354811201,1740711066758,-3023.569715,0.0062946,97]
[354811202,1740711066768,-1000.0,0.00631,120]
[354811203,1740711066777,-5000.0,0.00631549,30]
[354811204,1740711066787,-50000.0,0.006489,120]
[354811205,1740711066796,-119773.66306962,0.00649898,120]
[354811206,1740711066806,-161.50129667,0.00649898,120]
[354811207,1740711066815,-1998.88215612,0.0065,120]
[354811208,1740711066824,-352.59407512,0.00657534,120]
[354811209,1740711066834,-558.88,0.0066,90]
[354811210,1740711066843,-600.0,0.00679452,120]
[354811211,1740711066853,-600.0,0.00679452,120]
[354811212,1740711066863,-600.0,0.00679452,120]
[354811213,1740711066873,-600.0,0.00679452,120]
[354811214,1740711066883,-600.0,0.00679452,120]
[354811215,1740711066891,-600.0,0.00679452,120]
[354811216,1740711066901,-600.0,0.00679452,120]
[354811217,1740711066910,-600.0,0.00679452,120]
[354811218,1740711066919,-177.68829257,0.00679452,120]
[354811219,1740711066929,-2494.0,0.0068,120]
[354811220,1740711066940,-5000.0,0.006829,120]
[354811221,1740711066949,-3000.0,0.006829,120]
[354811222,1740711066958,-500.0,0.00684904,120]
[354811223,1740711066968,-500.0,0.00684904,120]
[354811224,1740711066977,-500.0,0.00684904,120]
[354811225,1740711066986,-500.0,0.00684904,120]
[354811226,1740711066996,-500.0,0.00684904,120]
[354811227,1740711067005,-500.0,0.00684904,120]
[354811228,1740711067015,-500.0,0.00684904,120]
[354811229,1740711067024,-500.0,0.00684904,120]
[354811230,1740711067033,-500.0,0.00684904,120]
[354811231,1740711067042,-500.0,0.00684904,120]
[354811232,1740711067052,-500.0,0.00684904,120]
[354811233,1740711067061,-500.0,0.00684904,120]
[354811234,1740711067071,-500.0,0.00684904,120]
[354811235,1740711067080,-500.0,0.00684904,120]
[354811236,1740711067089,-500.0,0.00684904,120]
[354811237,1740711067098,-500.0,0.00684904,120]
[354811238,1740711067108,-500.0,0.00684904,120]
[354811239,1740711067116,-500.0,0.00684904,120]
[354811240,1740711067126,-500.0,0.00684904,120]
[354811241,1740711067135,-500.0,0.00684904,120]
[354811242,1740711067145,-166.09086273,0.00684904,120]
[354811243,1740711067154,-1721.42,0.00684931,120]
[354811244,1740711067164,-1721.42,0.00684931,120]
[354811245,1740711067174,-1721.42,0.00684931,120]
[354811246,1740711067186,-1721.42,0.00684931,120]
[354811247,1740711067195,-1721.42,0.00684931,120]
[354811248,1740711067205,-1721.42,0.00684931,120]
[354811249,1740711067214,-1721.42,0.00684931,120]
[354811250,1740711067224,-1721.42,0.00684931,120]
[354811251,1740711067234,-1721.42,0.00684931,120]
[354811252,1740711067244,-1721.42,0.00684931,120]
[354811253,1740711067253,-1721.42,0.00684931,120]
[354811254,1740711067262,-1721.42,0.00684931,120]
[354811255,1740711067272,-1721.42,0.00684931,120]
[354811256,1740711067281,-1721.42,0.00684931,120]
[354811257,1740711067290,-1721.42,0.00684931,120]
[354811258,1740711067299,-1721.42,0.00684931,120]
[354811259,1740711067309,-1721.42,0.00684931,120]
[354811260,1740711067318,-1721.42,0.00684931,120]
[354811261,1740711067328,-1721.42,0.00684931,120]
[354811262,1740711067338,-1721.42,0.00684931,120]
[354811263,1740711067347,-1721.42,0.00684931,120]
[354811264,1740711067356,-1721.42,0.00684931,120]
[354811265,1740711067367,-1721.42,0.00684931,120]
[354811266,1740711067376,-1721.46956875,0.00684931,120]
[354811267,1740711067386,-11135.59439017,0.006877,120]
[354811268,1740711067395,-204.63988765,0.0069,120]
[354811269,1740711067405,-11852.9974731,0.00695146,120]
[354811270,1740711067415,-10000.0,0.00697,120]
[354811271,1740711067424,-1000.0,0.00698,120]
[354811272,1740711067436,-1000.0,0.00698,120]
[354811273,1740711067445,-1350.0,0.00699,120]
[354811274,1740711067455,-1350.0,0.00699,120]
[354811275,1740711067464,-1350.0,0.00699,120]
[354811276,1740711067473,-6873.89499634,0.0069999,120]
[354811277,1740711067482,-2500.0,0.007,120]
[354811278,1740711067492,-500.0,0.007,120]
[354811279,1740711067501,-14521.83317801,0.007,120]
[354811280,1740711067510,-1000.0,0.007,120]
[354811281,1740711067519,-500.0,0.007,120]
[354811282,1740711067529,-20000.0,0.007,120]
[354811283,1740711067538,-1000.0,0.007,30]
[354811284,1740711067547,-1998.88215612,0.007,120]
[354811285,1740711067556,-10000.0,0.00707,120]
[354811286,1740711067565,-37609.66436133,0.0071,120]
[354811287,1740711067575,-1021.52659601,0.0071,120]
[354811288,1740711067584,-10000.0,0.00717,120]
[354811289,1740711067593,-467.167701,0.00717684,120]
[354811290,1740711067603,-933.044699,0.00717684,120]
[354811291,1740711067613,-921.68,0.00719,120]
[354811292,1740711067622,-2000.0,0.007199,120]
[354811293,1740711067631,-8000.0,0.00729,120]
[354811294,1740711067640,-10000.0,0.007299,120]
[354811295,1740711067650,-9876.0,0.007378,120]
[354811296,1740711067659,-7195.22,0.007387,120]
[354811297,1740711067669,-637.00018127,0.0074,120]
[354811298,1740711067679,-324.32,0.0074,120]
[354811299,1740711067691,-2807657.65500491,0.00745,120]
[354811300,1740711067701,-13852.62142352,0.00747,120]
[354811301,1740711067711,-190.7062418,0.00747,120]
[354811302,1740711067720,-1014.59918629,0.0074747,120]
[354811303,1740711067730,-10000.0,0.00748,120]
[354811304,1740711067741,-2099198.3790765,0.007488,30]
[354811305,1740711067788,-151.0,0.00110133,120]
[354811306,1740711067798,-27878.86933181,0.007488,30]
[354811307,1740711067853,5000.0,0.00052535,30]
[354811308,1740711067899,798.4263744,0.0005,120]
[354811309,1740711068514,182.0,0.000537,120]
[354811310,1740711081640,5000.0,0.00050685,10]
[354811311,1740711081686,10000.0,0.00050712,10]
[354811312,1740711081746,15000.0,0.0005074,10]
[354811313,1740711131507,500.0,0.00052602,30]
[354811314,1740711131801,500.0,0.0005315,35]
[354811315,1740711132030,500.0,0.00053698,40]
[354811316,1740711132288,500.0,0.00054246,45]
[354811317,1740711148655,5325.80311372,0.00049,120]
[354811318,1740711153990,-150.0,0.00043862,2]
[354811319,1740711160633,-106.1617395,0.00043862,2]
[354811320,1740711185680,-150.0,0.00041656,2]
[354811321,1740711194279,-150.0,0.00041656,2]
[354811322,1740711197816,-150.0,0.00041656,2]
[354811323,1740711199024,-150.0,0.00041656,2]
[354811324,1740711200507,-150.0,0.00041656,2]
[354811325,1740711201646,-150.0,0.00041656,2]
[354811326,1740711202791,-150.0,0.00041656,2]
[354811327,1740711204162,-150.0,0.00041656,2]
[354811328,1740711207830,-150.0,0.00041656,2]
[354811329,1740711208919,-150.0,0.00041656,2]
[354811330,1740711220828,-150.0,0.00041656,2]
[354811331,1740711222012,-150.0,0.00041656,2]
[354811336,1740711711481,-968.73274329,0.00031945,120]
[354811337,1740711711516,-237.98354998,0.00041556,120]
[354811338,1740711711548,-8711.19688628,0.00049,120]
[354811339,1740711711580,-1355.0,0.00049,120]
[354811340,1740711711612,-14037.0,0.00051,120]
[354811341,1740711711642,-1355.0,0.00051,120]
[354811342,1740711711672,-3000.0,0.000523,90]
[354811343,1740711711703,-3000.0,0.0005231,90]
[354811344,1740711711743,-3080.513242,0.0005232,90]
[354811345,1740711711787,-200.0,0.000524,30]
[354811346,1740711711832,-200.0,0.00052409,30]
[354811347,1740711711885,-14037.0,0.00053,120]
[354811348,1740711711931,-1355.0,0.00053,120]
[354811349,1740711711973,-500.0,0.00054794,50]
[354811350,1740711712012,-500.0,0.00054794,120]
[354811351,1740711712055,-500.0,0.00054794,120]
[354811352,1740711712109,-500.0,0.00054794,120]
[354811353,1740711712148,-488.31034626,0.00054794,120]
[354811354,1740711712190,-504.78191848,0.00054794,120]
[354811355,1740711712235,-500.0,0.00054794,120]
[354811356,1740711712283,-500.0,0.00054794,120]
[354811357,1740711712325,-500.0,0.00054794,120]
[354811358,1740711712366,-500.0,0.00054794,120]
[354811359,1740711712406,-14037.0,0.00055,120]
[354811360,1740711712446,-1355.0,0.00055,120]
[354811361,1740711712491,-1319.24,0.00055228,120]
[354811362,1740711712534,-500.0,0.00055228,120]
[354811363,1740711712588,-6047.64842142,0.00055237,120]
[354811364,1740711712628,-500.0,0.00055238,120]
[354811365,1740711712671,-500.0,0.00055238,120]
[354811366,1740711712719,-500.99559527,0.00055238,120]
[354811367,1740711712760,-500.0,0.00055238,120]
[354811368,1740711712803,-1291.24,0.00055238,120]
[354811369,1740711713012,-503.47966407,0.00055238,120]
[354811370,1740711713045,-500.0,0.00055238,120]
[354811371,1740711713076,-502.55205688,0.00055238,120]
[354811372,1740711713110,-500.0,0.00055238,120]
[354811373,1740711713141,-500.0,0.00055238,120]
[354811374,1740711713171,-500.0,0.00055238,120]
[354811375,1740711713200,-500.0,0.00055238,120]
[354811376,1740711713232,-500.0,0.00055238,120]
[354811377,1740711713262,-500.0,0.00055238,120]
[354811378,1740711713292,-554.3,0.00055238,120]
[354811379,1740711713339,-500.87711319,0.00055238,120]
[354811380,1740711713375,-500.0,0.00055238,120]
[354811381,1740711713409,-500.0,0.00055238,120]